[Event "Titled Tuesday Blitz July 11 Early 2023"]
[White "Magallanes, Rey Jomar"]
[Black "Fernandez Lopez, Ruben"]
[WhiteFideId "5205948"]
[BlackFideId "24518298"]
[WhiteElo "2272"]
[BlackElo "2470"]
[Result "1-0"]
[Round "6"]
[TimeControl "180+2"]
[Date "2023.07.11"]
[WhiteClock "0:01:13"]
[BlackClock "0:01:02"]
[Board "142"]

1. e4 {[%clk 0:03:00]}  d5 {[%clk 0:02:59]} 2. exd5 {[%clk 0:03:00]}  Nf6 {[%clk 0:02:58]} 3. Nf3 {[%clk 0:03:00]}  Qxd5 {[%clk 0:02:58]} 4. d4 {[%clk 0:03:01]}  Qd8 {[%clk 0:02:57]} 5. c4 {[%clk 0:03:01]}  g6 {[%clk 0:02:57]} 6. Nc3 {[%clk 0:03:01]}  Bg7 {[%clk 0:02:58]} 7. Be2 {[%clk 0:03:01]}  O-O {[%clk 0:02:58]} 8. O-O {[%clk 0:03:01]}  c6 {[%clk 0:02:57]} 9. h3 {[%clk 0:03:01]}  Nbd7 {[%clk 0:02:57]} 10. Be3 {[%clk 0:03:01]}  Nb6 {[%clk 0:02:51]} 11. Rc1 {[%clk 0:02:59]}  Be6 {[%clk 0:02:43]} 12. b3 {[%clk 0:02:58]}  Bf5 {[%clk 0:02:38]} 13. Bd3 {[%clk 0:02:52]}  Bxd3 {[%clk 0:02:29]} 14. Qxd3 {[%clk 0:02:53]}  a5 {[%clk 0:02:29]} 15. Rfd1 {[%clk 0:02:51]}  a4 {[%clk 0:02:27]} 16. b4 {[%clk 0:02:51]}  Nbd7 {[%clk 0:02:19]} 17. d5 {[%clk 0:02:48]}  cxd5 {[%clk 0:02:19]} 18. cxd5 {[%clk 0:02:49]}  Qb8 {[%clk 0:02:16]} 19. Bd4 {[%clk 0:02:46]}  Rc8 {[%clk 0:02:15]} 20. Ne4 {[%clk 0:02:40]}  Nxe4 {[%clk 0:02:13]} 21. Qxe4 {[%clk 0:02:41]}  Qd6 {[%clk 0:02:10]} 22. Bxg7 {[%clk 0:02:39]}  Kxg7 {[%clk 0:02:10]} 23. Qd4+ {[%clk 0:02:35]}  Nf6 {[%clk 0:02:10]} 24. a3 {[%clk 0:02:32]}  Rxc1 {[%clk 0:02:07]} 25. Rxc1 {[%clk 0:02:33]}  Qxd5 {[%clk 0:02:08]} 26. Rc7 {[%clk 0:02:29]}  Qxd4 {[%clk 0:01:50]} 27. Nxd4 {[%clk 0:02:30]}  e5 {[%clk 0:01:49]} 28. Nb5 {[%clk 0:02:28]}  Rd8 {[%clk 0:01:41]} 29. Rxb7 {[%clk 0:02:26]}  Rd1+ {[%clk 0:01:40]} 30. Kh2 {[%clk 0:02:25]}  Ne4 {[%clk 0:01:41]} 31. f3 {[%clk 0:02:18]}  Nd2 {[%clk 0:01:37]} 32. Kg3 {[%clk 0:02:12]}  h5 {[%clk 0:01:27]} 33. Ra7 {[%clk 0:02:11]}  Nc4 {[%clk 0:01:19]} 34. Rxa4 {[%clk 0:02:10]}  Rd2 {[%clk 0:01:19]} 35. f4 {[%clk 0:01:51]}  e4 {[%clk 0:01:17]} 36. Ra7 {[%clk 0:01:43]}  Ne3 {[%clk 0:01:16]} 37. Kh2 {[%clk 0:01:34]}  Nxg2 {[%clk 0:01:11]} 38. Kh1 {[%clk 0:01:34]}  e3 {[%clk 0:01:11]} 39. Nc3 {[%clk 0:01:32]}  Rc2 {[%clk 0:01:08]} 40. Re7 {[%clk 0:01:15]}  Kf6 {[%clk 0:01:08]} 41. Re8 {[%clk 0:01:15]}  Kf5 {[%clk 0:01:06]} 42. Nd5 {[%clk 0:01:14]}  e2 {[%clk 0:01:02]} 43. Re5# {[%clk 0:01:13]} 1-0


[Site "https://www.chess.com"]

[Event "Titled Tuesday Blitz July 11 Early 2023"]
[White "Balint, Vilmos"]
[Black "Kopczynski, Michal"]
[WhiteFideId "718050"]
[BlackFideId "1124200"]
[WhiteElo "2272"]
[BlackElo "2468"]
[Result "0-1"]
[Round "6"]
[TimeControl "180+2"]
[Date "2023.07.11"]
[WhiteClock "0:01:57"]
[BlackClock "0:01:55"]
[Board "143"]

1. e4 {[%clk 0:02:51]}  b6 {[%clk 0:02:59]} 2. d4 {[%clk 0:02:51]}  Bb7 {[%clk 0:02:59]} 3. d5 {[%clk 0:02:50]}  e6 {[%clk 0:02:59]} 4. c4 {[%clk 0:02:50]}  Nf6 {[%clk 0:02:56]} 5. Bd3 {[%clk 0:02:51]}  exd5 {[%clk 0:02:53]} 6. exd5 {[%clk 0:02:50]}  Bb4+ {[%clk 0:02:53]} 7. Nc3 {[%clk 0:02:46]}  Qe7+ {[%clk 0:02:53]} 8. Ne2 {[%clk 0:02:45]}  c6 {[%clk 0:02:47]} 9. O-O {[%clk 0:02:44]}  cxd5 {[%clk 0:02:47]} 10. Nb5 {[%clk 0:02:41]}  O-O {[%clk 0:02:42]} 11. Nc7 {[%clk 0:02:41]}  dxc4 {[%clk 0:02:42]} 12. Bxc4 {[%clk 0:02:39]}  d5 {[%clk 0:02:39]} 13. Nxd5 {[%clk 0:02:24]}  Nxd5 {[%clk 0:02:33]} 14. Bxd5 {[%clk 0:02:25]}  Rd8 {[%clk 0:02:31]} 15. Nf4 {[%clk 0:02:24]}  g5 {[%clk 0:02:21]} 16. Bxb7 {[%clk 0:02:19]}  Rxd1 {[%clk 0:02:20]} 17. Rxd1 {[%clk 0:02:20]}  Qxb7 {[%clk 0:02:19]} 18. Nh5 {[%clk 0:02:10]}  Nc6 {[%clk 0:02:14]} 19. Bxg5 {[%clk 0:02:10]}  Be7 {[%clk 0:02:05]} 20. Nf6+ {[%clk 0:02:03]}  Kh8 {[%clk 0:01:59]} 21. Rd7 {[%clk 0:02:00]}  Qxd7 {[%clk 0:01:55]} 22. Nxd7 {[%clk 0:01:57]}  Bxg5 {[%clk 0:01:55]} 0-1


[Site "https://www.chess.com"]

[Event "Titled Tuesday Blitz July 11 Early 2023"]
[White "Balla, Tamas-Kristof"]
[Black "Tsyhanchuk, Stanislav"]
[WhiteFideId "1208497"]
[BlackFideId "13505130"]
[WhiteElo "2464"]
[BlackElo "2270"]
[Result "0-1"]
[Round "6"]
[TimeControl "180+2"]
[Date "2023.07.11"]
[WhiteClock "0:00:05"]
[BlackClock "0:00:28"]
[Board "144"]

1. e4 {[%clk 0:03:00]}  c5 {[%clk 0:03:00]} 2. Nf3 {[%clk 0:02:56]}  d6 {[%clk 0:03:00]} 3. d4 {[%clk 0:02:55]}  cxd4 {[%clk 0:03:01]} 4. Qxd4 {[%clk 0:02:56]}  Nc6 {[%clk 0:03:00]} 5. Qe3 {[%clk 0:02:56]}  e5 {[%clk 0:02:59]} 6. h3 {[%clk 0:02:56]}  Nf6 {[%clk 0:02:58]} 7. Be2 {[%clk 0:02:55]}  Be7 {[%clk 0:02:57]} 8. O-O {[%clk 0:02:55]}  d5 {[%clk 0:02:53]} 9. exd5 {[%clk 0:02:47]}  Nxd5 {[%clk 0:02:54]} 10. Qb3 {[%clk 0:02:44]}  O-O {[%clk 0:02:45]} 11. c4 {[%clk 0:02:32]}  Nf4 {[%clk 0:02:39]} 12. Bxf4 {[%clk 0:02:30]}  exf4 {[%clk 0:02:40]} 13. Nc3 {[%clk 0:02:26]}  Bf6 {[%clk 0:02:37]} 14. Nd5 {[%clk 0:02:26]}  Bf5 {[%clk 0:02:30]} 15. Nxf4 {[%clk 0:02:11]}  Nd4 {[%clk 0:02:18]} 16. Nxd4 {[%clk 0:01:56]}  Qxd4 {[%clk 0:02:19]} 17. Nd5 {[%clk 0:01:50]}  Qxb2 {[%clk 0:02:17]} 18. Nxf6+ {[%clk 0:01:50]}  Qxf6 {[%clk 0:02:18]} 19. Qxb7 {[%clk 0:01:51]}  Rfe8 {[%clk 0:02:14]} 20. Qf3 {[%clk 0:01:50]}  Rac8 {[%clk 0:02:11]} 21. Rac1 {[%clk 0:01:47]}  Rc5 {[%clk 0:02:04]} 22. Rfd1 {[%clk 0:01:34]}  Rec8 {[%clk 0:01:59]} 23. Bd3 {[%clk 0:01:19]}  Be6 {[%clk 0:01:51]} 24. Qxf6 {[%clk 0:01:10]}  gxf6 {[%clk 0:01:52]} 25. Rc3 {[%clk 0:01:10]}  f5 {[%clk 0:01:47]} 26. Rdc1 {[%clk 0:01:09]}  Kg7 {[%clk 0:01:46]} 27. Ra3 {[%clk 0:01:08]}  a5 {[%clk 0:01:44]} 28. g3 {[%clk 0:01:07]}  Kf6 {[%clk 0:01:44]} 29. h4 {[%clk 0:01:08]}  Ke5 {[%clk 0:01:44]} 30. Be2 {[%clk 0:01:05]}  f4 {[%clk 0:01:17]} 31. g4 {[%clk 0:00:38]}  Bxg4 {[%clk 0:01:05]} 32. Bxg4 {[%clk 0:00:35]}  Rg8 {[%clk 0:01:06]} 33. Kh2 {[%clk 0:00:07]}  Rxg4 {[%clk 0:01:05]} 34. Re1+ {[%clk 0:00:08]}  Kd4 {[%clk 0:01:04]} 35. Kh3 {[%clk 0:00:08]}  Rg6 {[%clk 0:00:56]} 36. Rf3 {[%clk 0:00:08]}  Rf6 {[%clk 0:00:50]} 37. Kg4 {[%clk 0:00:08]}  h5+ {[%clk 0:00:50]} 38. Kh3 {[%clk 0:00:06]}  Rxc4 {[%clk 0:00:51]} 39. Rd1+ {[%clk 0:00:07]}  Ke5 {[%clk 0:00:51]} 40. Ra3 {[%clk 0:00:06]}  Rc5 {[%clk 0:00:50]} 41. Re1+ {[%clk 0:00:07]}  Kf5 {[%clk 0:00:46]} 42. Rd3 {[%clk 0:00:07]}  Re6 {[%clk 0:00:44]} 43. Red1 {[%clk 0:00:07]}  Re2 {[%clk 0:00:43]} 44. R1d2 {[%clk 0:00:07]}  Rxd2 {[%clk 0:00:39]} 45. Rxd2 {[%clk 0:00:08]}  Ke4 {[%clk 0:00:40]} 46. Rb2 {[%clk 0:00:08]}  Kf3 {[%clk 0:00:38]} 47. Kh2 {[%clk 0:00:07]}  Kg4 {[%clk 0:00:38]} 48. Rb7 {[%clk 0:00:05]}  f5 {[%clk 0:00:36]} 49. Kg2 {[%clk 0:00:04]}  f3+ {[%clk 0:00:35]} 50. Kh2 {[%clk 0:00:04]}  Kxh4 {[%clk 0:00:35]} 51. Rg7 {[%clk 0:00:05]}  Rc2 {[%clk 0:00:34]} 52. Kg1 {[%clk 0:00:05]}  Rxa2 {[%clk 0:00:34]} 53. Rg3 {[%clk 0:00:05]}  Ra3 {[%clk 0:00:29]} 54. Kf1 {[%clk 0:00:05]}  Ra1# {[%clk 0:00:28]} 0-1


[Site "https://www.chess.com"]

[Event "Titled Tuesday Blitz July 11 Early 2023"]
[White "Kukreja Sankalp"]
[Black "SicilianPanzer"]
[WhiteFideId "45027676"]
[WhiteElo "2452"]
[BlackElo "2226"]
[Result "0-1"]
[Round "6"]
[TimeControl "180+2"]
[Date "2023.07.11"]
[WhiteClock "0:00:05"]
[BlackClock "0:00:06"]
[Board "147"]

1. e4 {[%clk 0:02:59]}  e6 {[%clk 0:02:59]} 2. d4 {[%clk 0:02:59]}  d5 {[%clk 0:02:59]} 3. Nc3 {[%clk 0:02:57]}  Bb4 {[%clk 0:02:59]} 4. Ne2 {[%clk 0:02:55]}  Nc6 {[%clk 0:02:54]} 5. a3 {[%clk 0:02:50]}  Ba5 {[%clk 0:02:53]} 6. Be3 {[%clk 0:02:48]}  Nge7 {[%clk 0:02:29]} 7. b4 {[%clk 0:02:34]}  Bb6 {[%clk 0:02:29]} 8. Na4 {[%clk 0:02:13]}  dxe4 {[%clk 0:02:18]} 9. c4 {[%clk 0:02:13]}  a6 {[%clk 0:01:40]} 10. Nxb6 {[%clk 0:02:12]}  cxb6 {[%clk 0:01:39]} 11. Nc3 {[%clk 0:02:12]}  Nf5 {[%clk 0:01:37]} 12. d5 {[%clk 0:02:10]}  Ne5 {[%clk 0:01:29]} 13. Bd4 {[%clk 0:01:57]}  Nxd4 {[%clk 0:01:09]} 14. Qxd4 {[%clk 0:01:58]}  Qf6 {[%clk 0:01:07]} 15. Qxe4 {[%clk 0:01:37]}  O-O {[%clk 0:00:54]} 16. Be2 {[%clk 0:01:11]}  exd5 {[%clk 0:00:40]} 17. cxd5 {[%clk 0:00:57]}  Bf5 {[%clk 0:00:28]} 18. Qe3 {[%clk 0:00:48]}  Nd3+ {[%clk 0:00:14]} 19. Kd2 {[%clk 0:00:48]}  Rfe8 {[%clk 0:00:14]} 20. Qg3 {[%clk 0:00:39]}  Rac8 {[%clk 0:00:12]} 21. Rac1 {[%clk 0:00:21]}  Nxc1 {[%clk 0:00:12]} 22. Rxc1 {[%clk 0:00:22]}  Qd4+ {[%clk 0:00:09]} 23. Ke1 {[%clk 0:00:22]}  Bd3 {[%clk 0:00:07]} 24. Qg5 {[%clk 0:00:15]}  Rxc3 {[%clk 0:00:05]} 25. Rxc3 {[%clk 0:00:07]}  Qxc3+ {[%clk 0:00:06]} 26. Kf1 {[%clk 0:00:06]}  Bxe2+ {[%clk 0:00:05]} 27. Kg1 {[%clk 0:00:05]}  Qe1# {[%clk 0:00:06]} 0-1


[Site "https://www.chess.com"]

[Event "Titled Tuesday Blitz July 11 Early 2023"]
[White "Nunez V, Gustavo Eduardo"]
[Black "Novikova, Margarita"]
[WhiteFideId "4403690"]
[BlackFideId "14109689"]
[WhiteElo "2446"]
[BlackElo "2193"]
[Result "1-0"]
[Round "6"]
[TimeControl "180+2"]
[Date "2023.07.11"]
[WhiteClock "0:00:04"]
[BlackClock "0:00:27"]
[Board "149"]

1. e4 {[%clk 0:03:00]}  d5 {[%clk 0:02:59]} 2. exd5 {[%clk 0:02:58]}  Qxd5 {[%clk 0:03:00]} 3. Nc3 {[%clk 0:02:57]}  Qd6 {[%clk 0:03:00]} 4. d4 {[%clk 0:02:56]}  Nf6 {[%clk 0:03:00]} 5. Nge2 {[%clk 0:02:52]}  c6 {[%clk 0:02:59]} 6. Bf4 {[%clk 0:02:52]}  Qb4 {[%clk 0:02:58]} 7. Qc1 {[%clk 0:02:39]}  Bf5 {[%clk 0:02:54]} 8. a3 {[%clk 0:02:39]}  Qa5 {[%clk 0:02:54]} 9. b4 {[%clk 0:02:38]}  Qd8 {[%clk 0:02:51]} 10. Qd2 {[%clk 0:02:27]}  e6 {[%clk 0:02:51]} 11. Ng3 {[%clk 0:02:28]}  Bg6 {[%clk 0:02:50]} 12. h4 {[%clk 0:02:25]}  Nh5 {[%clk 0:02:48]} 13. Nxh5 {[%clk 0:02:24]}  Bxh5 {[%clk 0:02:48]} 14. Be2 {[%clk 0:02:17]}  Bxe2 {[%clk 0:02:48]} 15. Nxe2 {[%clk 0:02:18]}  Bd6 {[%clk 0:02:48]} 16. Bxd6 {[%clk 0:02:15]}  Qxd6 {[%clk 0:02:47]} 17. O-O {[%clk 0:02:13]}  Qe7 {[%clk 0:02:43]} 18. Qf4 {[%clk 0:02:10]}  Qf6 {[%clk 0:02:38]} 19. Qxf6 {[%clk 0:02:10]}  gxf6 {[%clk 0:02:38]} 20. c4 {[%clk 0:02:10]}  Nd7 {[%clk 0:02:33]} 21. Nf4 {[%clk 0:02:04]}  e5 {[%clk 0:02:28]} 22. Rfe1 {[%clk 0:02:03]}  O-O-O {[%clk 0:02:26]} 23. Ne2 {[%clk 0:02:02]}  exd4 {[%clk 0:02:23]} 24. Nxd4 {[%clk 0:02:03]}  Ne5 {[%clk 0:02:23]} 25. Nf5 {[%clk 0:01:52]}  Nxc4 {[%clk 0:02:20]} 26. Re7 {[%clk 0:01:41]}  Rd7 {[%clk 0:02:20]} 27. Rxd7 {[%clk 0:01:39]}  Kxd7 {[%clk 0:02:21]} 28. Rd1+ {[%clk 0:01:39]}  Kc7 {[%clk 0:02:20]} 29. a4 {[%clk 0:01:38]}  Rd8 {[%clk 0:02:13]} 30. Re1 {[%clk 0:01:37]}  Rd7 {[%clk 0:02:07]} 31. Ng3 {[%clk 0:01:32]}  Nb6 {[%clk 0:02:02]} 32. a5 {[%clk 0:01:27]}  Nd5 {[%clk 0:02:02]} 33. Rb1 {[%clk 0:01:26]}  Nc3 {[%clk 0:01:59]} 34. Rb3 {[%clk 0:01:25]}  Nb5 {[%clk 0:01:55]} 35. Ne4 {[%clk 0:01:23]}  f5 {[%clk 0:01:52]} 36. Nc5 {[%clk 0:01:23]}  Rd4 {[%clk 0:01:48]} 37. a6 {[%clk 0:01:14]}  b6 {[%clk 0:01:46]} 38. Nd3 {[%clk 0:01:11]}  Rxh4 {[%clk 0:01:45]} 39. f4 {[%clk 0:01:04]}  Rg4 {[%clk 0:01:41]} 40. Kf2 {[%clk 0:01:01]}  f6 {[%clk 0:01:39]} 41. Rb1 {[%clk 0:00:54]}  Rg7 {[%clk 0:01:33]} 42. Rh1 {[%clk 0:00:43]}  Nd6 {[%clk 0:01:31]} 43. Kf3 {[%clk 0:00:36]}  Ne4 {[%clk 0:01:20]} 44. g4 {[%clk 0:00:19]}  Nd6 {[%clk 0:01:19]} 45. gxf5 {[%clk 0:00:17]}  Nxf5 {[%clk 0:01:20]} 46. Rc1 {[%clk 0:00:14]}  Nd4+ {[%clk 0:01:18]} 47. Ke4 {[%clk 0:00:14]}  Ne2 {[%clk 0:01:17]} 48. Rc2 {[%clk 0:00:14]}  Ng3+ {[%clk 0:01:16]} 49. Kf3 {[%clk 0:00:14]}  Nf5 {[%clk 0:01:16]} 50. Rc1 {[%clk 0:00:13]}  h5 {[%clk 0:01:15]} 51. Ke4 {[%clk 0:00:11]}  Ng3+ {[%clk 0:01:13]} 52. Kf3 {[%clk 0:00:09]}  h4 {[%clk 0:01:13]} 53. b5 {[%clk 0:00:09]}  c5 {[%clk 0:01:12]} 54. Nb4 {[%clk 0:00:10]}  Kd6 {[%clk 0:01:07]} 55. Rd1+ {[%clk 0:00:09]}  Ke6 {[%clk 0:01:07]} 56. Nc6 {[%clk 0:00:08]}  Nf5 {[%clk 0:01:04]} 57. Re1+ {[%clk 0:00:08]}  Kd5 {[%clk 0:01:01]} 58. Rd1+ {[%clk 0:00:08]}  Kc4 {[%clk 0:01:01]} 59. Ke4 {[%clk 0:00:06]}  Ng3+ {[%clk 0:01:00]} 60. Kf3 {[%clk 0:00:06]}  Kxb5 {[%clk 0:01:00]} 61. Nd8 {[%clk 0:00:05]}  Kxa6 {[%clk 0:00:58]} 62. Ne6 {[%clk 0:00:04]}  Re7 {[%clk 0:00:57]} 63. Nf8 {[%clk 0:00:02]}  Nf5 {[%clk 0:00:54]} 64. Ng6 {[%clk 0:00:03]}  Rh7 {[%clk 0:00:49]} 65. Nf8 {[%clk 0:00:03]}  Rh8 {[%clk 0:00:49]} 66. Ne6 {[%clk 0:00:04]}  h3 {[%clk 0:00:48]} 67. Nc7+ {[%clk 0:00:04]}  Kb7 {[%clk 0:00:48]} 68. Nd5 {[%clk 0:00:05]}  h2 {[%clk 0:00:47]} 69. Rh1 {[%clk 0:00:05]}  Nd4+ {[%clk 0:00:47]} 70. Kg2 {[%clk 0:00:05]}  Kc6 {[%clk 0:00:46]} 71. Nxf6 {[%clk 0:00:06]}  a5 {[%clk 0:00:45]} 72. Ng4 {[%clk 0:00:06]}  Rg8 {[%clk 0:00:41]} 73. Kg3 {[%clk 0:00:05]}  Rxg4+ {[%clk 0:00:41]} 74. Kxg4 {[%clk 0:00:05]}  a4 {[%clk 0:00:36]} 75. Rxh2 {[%clk 0:00:05]}  b5 {[%clk 0:00:35]} 76. f5 {[%clk 0:00:05]}  b4 {[%clk 0:00:34]} 77. f6 {[%clk 0:00:05]}  Ne6 {[%clk 0:00:34]} 78. Re2 {[%clk 0:00:05]}  Kd7 {[%clk 0:00:33]} 79. Kf5 {[%clk 0:00:05]}  Nf8 {[%clk 0:00:33]} 80. Re7+ {[%clk 0:00:03]}  Kd8 {[%clk 0:00:33]} 81. Ra7 {[%clk 0:00:04]}  a3 {[%clk 0:00:32]} 82. Ke5 {[%clk 0:00:03]}  Nd7+ {[%clk 0:00:28]} 83. Kd6 {[%clk 0:00:03]}  Nxf6 {[%clk 0:00:27]} 84. Ra8# {[%clk 0:00:04]} 1-0


[Site "https://www.chess.com"]

[Event "Titled Tuesday Blitz July 11 Early 2023"]
[White "cycygogne"]
[Black "arenal72"]
[WhiteElo "2121"]
[BlackElo "2423"]
[Result "0-1"]
[Round "6"]
[TimeControl "180+2"]
[Date "2023.07.11"]
[WhiteClock "0:00:16"]
[BlackClock "0:00:10"]
[Board "153"]

1. e4 {[%clk 0:03:00]}  Nc6 {[%clk 0:02:58]} 2. Nf3 {[%clk 0:02:59]}  d6 {[%clk 0:02:55]} 3. d4 {[%clk 0:02:59]}  g6 {[%clk 0:02:55]} 4. Nc3 {[%clk 0:02:49]}  Bg7 {[%clk 0:02:52]} 5. Be3 {[%clk 0:02:49]}  Nf6 {[%clk 0:02:51]} 6. h3 {[%clk 0:02:48]}  a6 {[%clk 0:02:51]} 7. Qd2 {[%clk 0:02:48]}  b5 {[%clk 0:02:51]} 8. a3 {[%clk 0:02:46]}  Bb7 {[%clk 0:02:45]} 9. Be2 {[%clk 0:02:40]}  e5 {[%clk 0:02:33]} 10. dxe5 {[%clk 0:02:27]}  dxe5 {[%clk 0:02:29]} 11. O-O-O {[%clk 0:02:27]}  O-O {[%clk 0:02:17]} 12. Bg5 {[%clk 0:02:15]}  Qc8 {[%clk 0:01:47]} 13. Bxf6 {[%clk 0:02:09]}  Bxf6 {[%clk 0:01:47]} 14. Nd5 {[%clk 0:02:09]}  Bg7 {[%clk 0:01:46]} 15. Kb1 {[%clk 0:01:58]}  Rd8 {[%clk 0:01:35]} 16. Qg5 {[%clk 0:01:52]}  h6 {[%clk 0:01:28]} 17. Qh4 {[%clk 0:01:49]}  Rd6 {[%clk 0:01:20]} 18. Rd3 {[%clk 0:01:39]}  Qd8 {[%clk 0:01:18]} 19. Rhd1 {[%clk 0:01:38]}  Qxh4 {[%clk 0:01:17]} 20. Nxh4 {[%clk 0:01:38]}  Rc8 {[%clk 0:01:12]} 21. Bg4 {[%clk 0:01:34]}  Rcd8 {[%clk 0:00:52]} 22. Nxc7 {[%clk 0:01:33]}  Rxd3 {[%clk 0:00:52]} 23. cxd3 {[%clk 0:01:34]}  h5 {[%clk 0:00:49]} 24. Be2 {[%clk 0:01:30]}  Nd4 {[%clk 0:00:49]} 25. Bf1 {[%clk 0:01:26]}  Bh6 {[%clk 0:00:48]} 26. Nf3 {[%clk 0:01:22]}  Nxf3 {[%clk 0:00:46]} 27. gxf3 {[%clk 0:01:23]}  Rc8 {[%clk 0:00:46]} 28. Nd5 {[%clk 0:01:18]}  Bxd5 {[%clk 0:00:45]} 29. exd5 {[%clk 0:01:19]}  Rd8 {[%clk 0:00:45]} 30. Re1 {[%clk 0:01:14]}  Rxd5 {[%clk 0:00:44]} 31. Kc2 {[%clk 0:01:09]}  f6 {[%clk 0:00:42]} 32. Re4 {[%clk 0:01:09]}  Kf7 {[%clk 0:00:42]} 33. a4 {[%clk 0:01:08]}  Bf8 {[%clk 0:00:38]} 34. axb5 {[%clk 0:00:58]}  axb5 {[%clk 0:00:39]} 35. b4 {[%clk 0:00:58]}  f5 {[%clk 0:00:36]} 36. Re1 {[%clk 0:00:53]}  Bxb4 {[%clk 0:00:35]} 37. Rb1 {[%clk 0:00:53]}  Bd6 {[%clk 0:00:35]} 38. d4 {[%clk 0:00:50]}  Rxd4 {[%clk 0:00:31]} 39. Rxb5 {[%clk 0:00:47]}  Rf4 {[%clk 0:00:29]} 40. Be2 {[%clk 0:00:43]}  e4 {[%clk 0:00:27]} 41. Rb3 {[%clk 0:00:37]}  Bc5 {[%clk 0:00:22]} 42. fxe4 {[%clk 0:00:30]}  Rxf2 {[%clk 0:00:16]} 43. Kd1 {[%clk 0:00:29]}  fxe4 {[%clk 0:00:16]} 44. Rb7+ {[%clk 0:00:28]}  Kf6 {[%clk 0:00:15]} 45. Rc7 {[%clk 0:00:27]}  Bd4 {[%clk 0:00:16]} 46. Rc6+ {[%clk 0:00:26]}  Kg5 {[%clk 0:00:16]} 47. Rd6 {[%clk 0:00:25]}  Be5 {[%clk 0:00:14]} 48. Rd5 {[%clk 0:00:25]}  Kf4 {[%clk 0:00:14]} 49. Ra5 {[%clk 0:00:24]}  Rg2 {[%clk 0:00:13]} 50. Ra8 {[%clk 0:00:21]}  Ke3 {[%clk 0:00:11]} 51. Rf8 {[%clk 0:00:16]}  Rxe2 {[%clk 0:00:10]} 0-1


[Site "https://www.chess.com"]

[Event "Titled Tuesday Blitz July 11 Early 2023"]
[White "Szente Varga, Fruzsina"]
[Black "Vovk, Orest"]
[WhiteFideId "712264"]
[BlackFideId "14113490"]
[WhiteElo "2314"]
[BlackElo "2538"]
[Result "1-0"]
[Round "6"]
[TimeControl "180+2"]
[Date "2023.07.11"]
[WhiteClock "0:00:12"]
[BlackClock "0:00:00"]
[Board "156"]

1. e4 {[%clk 0:03:00]}  g5 {[%clk 0:02:53]} 2. d4 {[%clk 0:02:54]}  g4 {[%clk 0:02:50]} 3. Qxg4 {[%clk 0:02:39]}  d5 {[%clk 0:02:48]} 4. Qf3 {[%clk 0:02:32]}  dxe4 {[%clk 0:02:47]} 5. Qxe4 {[%clk 0:02:33]}  Nf6 {[%clk 0:02:47]} 6. Qd3 {[%clk 0:02:29]}  Nc6 {[%clk 0:02:48]} 7. c3 {[%clk 0:02:28]}  Qd5 {[%clk 0:02:46]} 8. Nf3 {[%clk 0:02:24]}  Bg4 {[%clk 0:02:46]} 9. Be2 {[%clk 0:02:23]}  O-O-O {[%clk 0:02:42]} 10. Bf4 {[%clk 0:02:15]}  e5 {[%clk 0:02:20]} 11. Nxe5 {[%clk 0:02:05]}  Nxe5 {[%clk 0:02:18]} 12. Bxe5 {[%clk 0:02:05]}  Qxg2 {[%clk 0:02:00]} 13. Rf1 {[%clk 0:01:55]}  Bxe2 {[%clk 0:01:37]} 14. Qxe2 {[%clk 0:01:56]}  Bg7 {[%clk 0:01:35]} 15. f4 {[%clk 0:01:34]}  Qd5 {[%clk 0:01:26]} 16. Nd2 {[%clk 0:01:17]}  Rhe8 {[%clk 0:01:23]} 17. O-O-O {[%clk 0:00:47]}  Qxa2 {[%clk 0:01:16]} 18. Qc4 {[%clk 0:00:34]}  Qxc4 {[%clk 0:01:08]} 19. Nxc4 {[%clk 0:00:34]}  Nh5 {[%clk 0:01:07]} 20. Bxg7 {[%clk 0:00:25]}  Nxg7 {[%clk 0:01:00]} 21. f5 {[%clk 0:00:26]}  Nh5 {[%clk 0:01:00]} 22. Ne5 {[%clk 0:00:26]}  f6 {[%clk 0:00:33]} 23. Nc4 {[%clk 0:00:26]}  Re2 {[%clk 0:00:31]} 24. Rd2 {[%clk 0:00:26]}  Rde8 {[%clk 0:00:31]} 25. Rf2 {[%clk 0:00:24]}  Rxf2 {[%clk 0:00:27]} 26. Rxf2 {[%clk 0:00:25]}  Re1+ {[%clk 0:00:27]} 27. Kd2 {[%clk 0:00:24]}  Kd7 {[%clk 0:00:28]} 28. Ne3 {[%clk 0:00:23]}  Rh1 {[%clk 0:00:26]} 29. Nd5 {[%clk 0:00:20]}  c6 {[%clk 0:00:23]} 30. Nb4 {[%clk 0:00:20]}  a5 {[%clk 0:00:22]} 31. Nd3 {[%clk 0:00:21]}  b6 {[%clk 0:00:23]} 32. Kc2 {[%clk 0:00:19]}  a4 {[%clk 0:00:22]} 33. Nb4 {[%clk 0:00:18]}  Kd6 {[%clk 0:00:22]} 34. Kd3 {[%clk 0:00:17]}  c5 {[%clk 0:00:22]} 35. Nc2 {[%clk 0:00:14]}  Rb1 {[%clk 0:00:21]} 36. Ne3 {[%clk 0:00:14]}  b5 {[%clk 0:00:22]} 37. dxc5+ {[%clk 0:00:14]}  Kxc5 {[%clk 0:00:22]} 38. Ng4 {[%clk 0:00:14]}  Rd1+ {[%clk 0:00:22]} 39. Kc2 {[%clk 0:00:15]}  Rg1 {[%clk 0:00:23]} 40. Ne3 {[%clk 0:00:15]}  b4 {[%clk 0:00:23]} 41. cxb4+ {[%clk 0:00:15]}  Kd4 {[%clk 0:00:23]} 42. Nd1 {[%clk 0:00:13]}  Rg8 {[%clk 0:00:19]} 43. b5 {[%clk 0:00:14]}  Rc8+ {[%clk 0:00:20]} 44. Nc3 {[%clk 0:00:14]}  Kc4 {[%clk 0:00:21]} 45. Re2 {[%clk 0:00:12]}  Nf4 {[%clk 0:00:00]} 46. Re4+ {[%clk 0:00:12]} 1-0


[Site "https://www.chess.com"]

[Event "Titled Tuesday Blitz July 11 Early 2023"]
[White "Sarkar, Justin"]
[Black "Omariev, Maksim"]
[WhiteFideId "2010011"]
[BlackFideId "4193423"]
[WhiteElo "2249"]
[BlackElo "2411"]
[Result "1-0"]
[Round "6"]
[TimeControl "180+2"]
[Date "2023.07.11"]
[WhiteClock "0:00:05"]
[BlackClock "0:00:01"]
[Board "158"]

1. e4 {[%clk 0:02:37]}  c5 {[%clk 0:02:58]} 2. Nf3 {[%clk 0:02:36]}  d6 {[%clk 0:02:59]} 3. d4 {[%clk 0:02:35]}  cxd4 {[%clk 0:03:00]} 4. Nxd4 {[%clk 0:02:36]}  Nf6 {[%clk 0:03:00]} 5. Nc3 {[%clk 0:02:36]}  a6 {[%clk 0:03:00]} 6. Qf3 {[%clk 0:02:33]}  Nbd7 {[%clk 0:02:59]} 7. Be3 {[%clk 0:02:30]}  g6 {[%clk 0:02:54]} 8. h3 {[%clk 0:02:28]}  Bg7 {[%clk 0:02:54]} 9. O-O-O {[%clk 0:02:26]}  O-O {[%clk 0:02:45]} 10. Kb1 {[%clk 0:02:22]}  Ne5 {[%clk 0:02:32]} 11. Qe2 {[%clk 0:02:15]}  b5 {[%clk 0:02:33]} 12. f4 {[%clk 0:02:10]}  Nc4 {[%clk 0:02:33]} 13. Bc1 {[%clk 0:02:10]}  Bb7 {[%clk 0:02:33]} 14. g4 {[%clk 0:01:55]}  Rc8 {[%clk 0:02:27]} 15. Bg2 {[%clk 0:01:52]}  Nd7 {[%clk 0:02:12]} 16. h4 {[%clk 0:01:42]}  Na3+ {[%clk 0:01:56]} 17. bxa3 {[%clk 0:01:25]}  Rxc3 {[%clk 0:01:55]} 18. Bb2 {[%clk 0:01:26]}  Rc4 {[%clk 0:01:54]} 19. h5 {[%clk 0:01:24]}  Nc5 {[%clk 0:01:49]} 20. hxg6 {[%clk 0:01:15]}  fxg6 {[%clk 0:01:36]} 21. e5 {[%clk 0:01:14]}  d5 {[%clk 0:01:11]} 22. f5 {[%clk 0:01:08]}  Na4 {[%clk 0:01:02]} 23. Ne6 {[%clk 0:01:02]}  Qa5 {[%clk 0:01:01]} 24. fxg6 {[%clk 0:00:48]}  Nxb2 {[%clk 0:00:56]} 25. Rxh7 {[%clk 0:00:33]}  Rf7 {[%clk 0:00:13]} 26. gxf7+ {[%clk 0:00:21]}  Kxf7 {[%clk 0:00:14]} 27. Rxg7+ {[%clk 0:00:15]}  Kxe6 {[%clk 0:00:14]} 28. g5 {[%clk 0:00:10]}  Qxa3 {[%clk 0:00:02]} 29. Rd3 {[%clk 0:00:05]}  Rc3 {[%clk 0:00:01]} 30. Bh3# {[%clk 0:00:05]} 1-0


[Site "https://www.chess.com"]